Cogmind - Beta 11.1 @@@ ROGUE MODE // 2022.08.20 @ 19:39:48 Player: maxwell Result: Destroyed by S-10 Pest with Light Assault Rifle Performance ------------- Evolutions (1) 500 Regions Visited (3) 600 Robots Destroyed (25) 125 Value Destroyed (835) 835 Prototype IDs (2) 40 Alien Tech Used (0) 0 Bonus (-3) -3 TOTAL SCORE: 2097 Bonus ------- Friendly Fire -3 Cogmind --------- Core Integrity 0/400 Matter 275/300 Energy 98/100 System Corruption 0% Temperature Cool (0) Movement Core (50) Location -9/Mines Parts ------- > --- POWER (1) -------- (None) > --- PROPULSION (3) --- (None) > --- UTILITY (3) ------ (None) > --- WEAPON (2) ------- (None) > --- INVENTORY (5) ---- Heat Sink Huge Storage Unit Spread Laser Beam Cannon Grenade Launcher Peak State ------------ > --- POWER ------------ Heavy Ion Engine > --- PROPULSION ------- Wheel Wheel > --- UTILITY ---------- Huge Storage Unit Bomb Drone Bay > --- WEAPON ----------- Spread Laser Spread Laser > --- INVENTORY -------- Improved Ion Engine Light Treads Light Treads Light Treads Heat Sink Huge Storage Unit Light Armor Plating Light Armor Plating Small Laser Spread Laser Spread Laser Beam Cannon Grenade Launcher Rocket Launcher Mace [Rating: 26] Favorites ----------- Power Heavy Ion Engine Engine Heavy Ion Engine Propulsion Wheel Treads Light Treads Wheel Wheel Utility Huge Storage Unit Device Improved Heat Sink Storage Huge Storage Unit Processor Targeting Computer Protection Light Armor Plating Weapon Spread Laser Energy Gun Spread Laser Ballistic Gun Light Assault Rifle Build | -11 -10 -9 -9 ------- Run | Scr Mat Mat Min Slots Evolved 2 | . . 2 . Power . | . . . . Propulsion 1 | . . 1 . Utility 1 | . . 1 . Weapon . | . . . . Parts Attached 27 | 6 6 7 8 Power 4 | 1 1 1 1 Engine 4 | 1 1 1 1 Core . | . . . . Reactor . | . . . . Propulsion 9 | 2 2 2 3 Treads 5 | 2 . . 3 Leg . | . . . . Wheel 4 | . 2 2 . Hover . | . . . . Flight . | . . . . Utility 8 | 1 1 3 3 Device 3 | . 1 1 1 Storage 2 | 1 . 1 . Processor 1 | . . 1 . Hackware . | . . . . Protection 2 | . . . 2 Artifact . | . . . . Weapon 6 | 2 2 1 1 Energy Gun 5 | 1 2 1 1 Energy Cannon . | . . . . Ballistic Gun 1 | 1 . . . Ballistic Cannon . | . . . . Launcher . | . . . . Special Weapon . | . . . . Impact Weapon . | . . . . Slashing Weapon . | . . . . Piercing Weapon . | . . . . Special Melee Weapon . | . . . . Unidentified Prototypes 2 | . 1 . 1 Parts Lost 19 | . 3 4 12 Power 3 | . . 1 2 Propulsion 8 | . 1 2 5 Utility 4 | . . 1 3 Weapon 4 | . 2 . 2 Highest Loss Streak 12 | . 3 3 12 To Critical Strikes . | . . . . Average Slot Usage (%) 81 | . 85 80 76 Engine 10 | . 13 6 10 Treads 7 | . 18 . 2 Wheel 14 | . 2 26 17 Device 8 | . 7 9 9 Storage 12 | . 14 11 10 Processor 3 | . . 5 4 Energy Gun 21 | . 21 21 19 Ballistic Gun 2 | . 6 . . Naked Turns 10 | . . . 10 Heaviest Build 102 | 10 20 95 102 Greatest Support 60 | 40 40 30 60 Greatest Overweight (x) 8 | . 1 8 5 Average Overweight (x) 2 | . . 3 3 Largest Inventory Capacity 25 | 8 8 25 25 Average Capacity 17 | 7 8 25 24 Most Carried 16 | 1 8 13 16 Average Carried 8 | . 5 10 12 Final Capacity 25 | 8 8 25 5 Final Carried 13 | 1 8 13 5 Class Distribution -------------------- 100% | Mutant Dominant Class ---------------- Mutant | -10/Materials Mutant | -9/Materials Mutant | -9/Mines Resources | -11 -10 -9 -9 ----------- Run | Scr Mat Mat Min Matter Collected 416 | 191 165 60 . Remotely . | . . . . Salvage Created 738 | . 345 393 . Parts 56 | . 26 30 . Haulers Intercepted . | . . . . Recyclers Shooed 2 | . . 2 . Parts Field Recycled . | . . . . Retrieved Matter . | . . . . Parts Self-Destructed . | . . . . Prevented . | . . . . Kills | -11 -10 -9 -9 ------- Run | Scr Mat Mat Min Combat Hostiles Destroyed 22 | . 12 8 2 Guns 22 | . 12 8 2 Classes Destroyed 8 | . 3 4 1 Builder 1 | . . 1 . Recycler 1 | . . 1 . Watcher 1 | . 1 . . Swarmer 3 | . 3 . . Grunt 11 | . 9 2 . Duelist 1 | . . 1 . Sentry 5 | . . 5 . Demolisher 2 | . . . 2 Best Kill Streak 5 | . 5 4 2 Combat Bots Only 5 | . 5 4 2 Max Kills in Single Turn 2 | . 2 1 1 Gunslinging 1 | . 1 . . Exploded . | . . . . Melee . | . . . . Uniques/NPCs Destroyed . | . . . . Combat | -11 -10 -9 -9 -------- Run | Scr Mat Mat Min Damage Taken 2690 | . 766 406 1518 Core 499 | . 96 107 296 Absorbed by Shields . | . . . . Regen/Repaired (Parts) 71 | . . 71 . Core Remaining (%) 80 | 100 61 . . Volleys Fired 63 | . 39 18 6 Largest 2 | . 2 2 2 Hottest 130 | . 130 130 130 Shots Fired 117 | . 70 36 11 Gun 117 | . 70 36 11 Cannon . | . . . . Launcher . | . . . . Special . | . . . . Kinetic 15 | . 15 . . Thermal 102 | . 55 36 11 Explosive . | . . . . Electromagnetic . | . . . . Robot Hit Streak 10 | . 8 8 10 Robot Miss Streak 7 | . 7 6 5 Penetration Max . | . . . . Secondary Targets 7 | . 5 1 1 Max Gunslinging Chain 1 | . 1 1 1 Shots Hit Robots 104 | . 57 36 11 Core Hits 119 | . 52 52 15 Critical Kills . | . . . . Critical Parts Destroyed . | . . . . Critical Strikes . | . . . . Melee Attacks . | . . . . Impact . | . . . . Slashing . | . . . . Piercing . | . . . . Sneak Attacks . | . . . . Combat Hostiles . | . . . . Follow-up Attacks . | . . . . Damage Inflicted 1295 | . 660 491 144 Guns 1295 | . 660 491 144 Cannons . | . . . . Explosions . | . . . . Melee . | . . . . Ramming . | . . . . Kinetic 78 | . 78 . . Thermal 1217 | . 582 491 144 Explosive . | . . . . Electromagnetic . | . . . . Impact . | . . . . Slashing . | . . . . Piercing . | . . . . Highest Corruption . | . . . . Average Corruption . | . . . . Corruption Purged . | . . . . Corruption Blocked . | . . . . Overload Shots . | . . . . Overflow Damage . | . . . . Projectiles . | . . . . Explosions . | . . . . Melee . | . . . . Knockbacks . | . . . . Impact . | . . . . Kinetic . | . . . . Secondary . | . . . . Self-Inflicted Damage . | . . . . Shots . | . . . . Rammed . | . . . . Targets Rammed . | . . . . Kicked . | . . . . Crushed . | . . . . Highest Temperature 466 | . 466 148 313 Average Temperature 123 | . 150 49 162 Received Heat Transfer 456 | . 348 108 . Effects 7 | . 6 . 1 Shutdowns 2 | . 2 . . Energy Bleed 1 | . . . 1 Interference 3 | . 3 . . Matter Decay 1 | . 1 . . Siege Activations . | . . . . Robots Corrupted . | . . . . Combat Hostiles . | . . . . Parts Fried . | . . . . Impact Corruptions . | . . . . Robots Melted . | . . . . Combat Hostiles . | . . . . Parts Melted 1 | . . 1 . Heat Transferred 1620 | . 830 615 175 Parts Sabotaged . | . . . . Parts Stolen . | . . . . Parts Stripped . | . . . . Power Chain Reactions . | . . . . Missiles Intercepted . | . . . . Alert | -11 -10 -9 -9 ------- Run | Scr Mat Mat Min Peak Influence 342 | . 248 342 80 Initial 55 | . . 49 55 Average 110 | . 93 185 50 Maximum Alert Level 1 | . 1 1 . Low Security (%) 79 | 100 90 49 100 Level 1 20 | . 9 50 . Level 2 . | . . . . Level 3 . | . . . . Level 4 . | . . . . Level 5 . | . . . . High Security . | . . . . Max Security . | . . . . Squads Dispatched 3 | . 2 1 . Investigation 1 | . 1 . . Extermination . | . . . . Reinforcement 2 | . 1 1 . Assault . | . . . . Garrison . | . . . . Intercept . | . . . . Searches Triggered . | . . . . Construction Impeded . | . . . . Haulers Reinforced . | . . . . Active Scanning Responses . | . . . . Cargo Convoy Interrupts . | . . . . Stealth | -11 -10 -9 -9 --------- Run | Scr Mat Mat Min Distress Signals 1 | . 1 . . Communications Jammed . | . . . . Distress Signals . | . . . . Times Spotted 39 | . 15 12 12 Peak Tracking Total 8 | . 5 5 8 Tactical Retreats 2 | . 1 . 1 Traps | -11 -10 -9 -9 ------- Run | Scr Mat Mat Min Traps Triggered 1 | . 1 . . Indirectly . | . . . . Trap Hack Attempts . | . . . . Triggered . | . . . . Disarmed . | . . . . Reprogrammed . | . . . . Reused . | . . . . Traps Extracted . | . . . . Installed . | . . . . Triggered . | . . . . Machines | -11 -10 -9 -9 ---------- Run | Scr Mat Mat Min Machines Disabled . | . . . . Max in Single Turn . | . . . . Machines Sabotaged . | . . . . Garrisons Compromised . | . . . . Overloaded Fab Kills . | . . . . Hacking | -11 -10 -9 -9 --------- Run | Scr Mat Mat Min Machines Accessed 7 | . 3 3 1 Terminals 5 | . 3 2 . Fabricators . | . . . . Repair Stations 1 | . . 1 . Recycling Units . | . . . . Scanalyzers . | . . . . Garrison Access . | . . . . Total Hacks 19 | . 9 9 1 Successful 10 | . 3 6 1 Failed 9 | . 6 3 . Catastrophic 1 | . 1 . . Database Lockouts . | . . . . Manual 14 | . 7 7 . Terminals 16 | . 9 7 . Fabricators . | . . . . Repair Stations 2 | . . 2 . Recycling Units . | . . . . Scanalyzers . | . . . . Garrison Access . | . . . . Terminal Hacks 3 | . 1 1 1 Open Door 1 | . . . 1 Terminal Index 1 | . . 1 . Locate Traps 1 | . 1 . . Fabricator Hacks . | . . . . Repair Station Hacks 2 | . . 2 . Scan Component 1 | . . 1 . Repair 1 | . . 1 . Recycling Unit Hacks . | . . . . Scanalyzer . | . . . . Garrison Access Hacks . | . . . . Unauthorized Hacks 5 | . 2 3 . Terminals 5 | . 2 3 . Assimilate 1 | . . 1 . Botnet 1 | . . 1 . Operators 3 | . 2 1 . Fabricators . | . . . . Repair Stations . | . . . . Recycling Units . | . . . . Scanalyzers . | . . . . Garrison Access . | . . . . Data Cores Recovered . | . . . . Used . | . . . . Hacking Detections 6 | . 3 3 . Full Trace Events 1 | . 1 . . Feedback Events . | . . . . Feedback Blocked . | . . . . Robot Schematics Acquired . | . . . . Robots Built . | . . . . Authchips . | . . . . Time . | . . . . Total Robot Build Rating . | . . . . Part Schematics Acquired . | . . . . Parts Built . | . . . . Authchips . | . . . . Time . | . . . . Total Part Build Rating . | . . . . Parts Repaired 1 | . . 1 . Time 16 | . . 16 . Parts Recycled . | . . . . Recycled Matter . | . . . . Retrieved Matter . | . . . . Retrieved Components . | . . . . Parts Scanalyzed . | . . . . Part Schematics Acquired . | . . . . Parts Damaged . | . . . . Bothacking | -11 -10 -9 -9 ------------ Run | Scr Mat Mat Min Used RIF Installer . | . . . . Robots Hacked . | . . . . Non-combat . | . . . . Combat . | . . . . Robot Hacks Applied . | . . . . Relay Couplers Released . | . . . . Fabnet Peak Effective % . | . . . . Robots Rewired . | . . . . Allies Hacked . | . . . . Hacks Repelled . | . . . . Allies | -11 -10 -9 -9 -------- Run | Scr Mat Mat Min Total Allies 1 | . . 1 . Largest Group 1 | . . 1 1 Highest-Rated Group 10 | . . 10 9 Highest-Rated Ally 10 | . . 10 9 Total Orders 2 | . . . 2 ROAM 1 | . . . 1 RETURN 1 | . . . 1 Ally Attacks . | . . . . Total Damage . | . . . . Kills . | . . . . Allies Corrupted . | . . . . Allies Melted . | . . . . Intel | -11 -10 -9 -9 ------- Run | Scr Mat Mat Min Robot Analysis Total . | . . . . Derelict Logs Recovered . | . . . . Drone Launches 16 | . . . 16 Drone Recoveries 16 | . . . 16 Exploration | -11 -10 -9 -9 ------------- Run | Scr Mat Mat Min Turns Passed 1162 | 66 438 401 257 Spaces Moved 618 | 38 198 226 156 Core 25 | 3 . . 22 Treads 206 | 35 163 . 8 Legs . | . . . . Wheels 387 | . 35 226 126 Hover . | . . . . Flight . | . . . . Fastest Speed 50 | 50 80 110 50 Average Speed 139 | 151 145 133 138 Slowest Speed 480 | 160 160 200 480 Overloaded Moves . | . . . . Propulsion Burnouts . | . . . . Robots Hopped . | . . . . Cave-ins Triggered . | . . . . Exploration Rate (%) 35 | 3 51 33 53 Regions Visited 3 Branch Regions 1 Pre-discovered Areas . | . . . . Known Exits Taken . | . . . . Unknown Exits Taken 3 | 1 1 1 . Scrap Searched 1 | . . . 1 Spaces Dug . | . . . . Terrain Destroyed . | . . . . Melee . | . . . . Projectile . | . . . . AOE . | . . . . Terrain Rammed . | . . . . Walls Destroyed . | . . . . Machines Disabled . | . . . . Actions | -11 -10 -9 -9 --------- Run | Scr Mat Mat Min Total 797 | 44 278 288 187 Wait 67 | . 25 29 13 Move 615 | 37 197 225 156 Hop . | . . . . Pick Up 20 | 1 9 8 2 Fast Attach 14 | 6 4 4 . Attach 13 | . 2 3 8 Detach 2 | . . . 2 Swap . | . . . . Drop 3 | . 2 1 . Fire 63 | . 39 18 6 Melee . | . . . . Ram . | . . . . Kick . | . . . . Crush . | . . . . Escape Stasis . | . . . . Rewire . | . . . . Trap . | . . . . Miscellaneous . | . . . . Route ------- -11/Scrapyard -10/Materials (discovered 2 exits: *Mat x2) -9/Materials -9/Mines (discovered 1 exit: [*Mat]) History --------- Turn | Location | Event 28 | -11/Scrapyard | Discovered new exit (range 15) 67 | -11/Scrapyard | Entered Materials 281 | -10/Materials | Lost 3 parts (1n2w) 301 | -10/Materials | Build established: Mutant 352 | -10/Materials | Discovered new exit (range 4) 405 | -10/Materials | Discovered new exit (range 13) 505 | -10/Materials | Entered another Materials area 505 | -9/Materials | Evolved 2 slots: Propulsion x1, Utility x1 664 | -9/Materials | Lost 3 parts (1p1n1u) 719 | -9/Materials | Repaired Spread Laser 889 | -9/Materials | Discovered new exit (range 8) 906 | -9/Materials | Entered Mines 906 | -9/Mines | Accompanied by 1 ally 912 | -9/Mines | Met a Derelict bent on vengeance 1001 | -9/Mines | Found the Drone Emporium 1009 | -9/Mines | Found Prototype Device 1018 | -9/Mines | Identified Bomb Drone Bay 1074 | -9/Mines | YI-UF0 nonchalantly dropped a Grenade Launcher on the ground 1080 | -9/Mines | Assembled infested the area 1119 | -9/Mines | Core integrity fell below 50% 1142 | -9/Mines | Core integrity fell below 20% 1153 | -9/Mines | Released all parts (2) 1163 | -9/Mines | Discovered new exit (range 6) 1163 | -9/Mines | Destroyed by S-10 Pest with Light Assault Rifle Last Messages --------------- 01146_ U-05 Engineer lays Concrete. 01147_ K-01 Serf collects debris. 01147_ U-05 Engineer builds a Wall. 01148_ Imp. Ion Engine destroyed. 01148_ Lgt. Treads destroyed. 01148_ U-05 Engineer lays Concrete. 01151_ Lgt. Treads destroyed. 01151_ K-01 Serf destroyed. 01152_ U-05 Engineer lays Concrete. 01153_ The unstable cave ceiling collapses. 01153_ Released Spread Laser. 01153_ Released Huge Storage Unit. 01153_ U-05 Engineer lays Concrete. 01154_ The unstable cave ceiling collapses. 01154_ U-05 Engineer lays Concrete. 01162_ Searching scrap... 01162_ Found Hcp. Battery. 01162_ Found Signal Interpreter. 01162_ Found 15 Matter. 01163_ EXIT=FOUND Map ----- +----------------------------------------------------+ | | | | | ?????????????????????????????? | | ?????????????????????????????? | | ?????????????????????????????? | | ?????????????????????????????? | | ?????????????????????????????? | | ?????????????????????????????? | | ?????????????????????????????? | | ?????????????????????????????? | | ?????????????????????????????? | | ?????????????????????????????? | | ?????????????????????????????? | | ?????????????????????????????? | | ?????????????????????????????? | | ?????????????????????????????? | | ?????????????????????????????? | | ?????????????????????????????? | | ??########???????????????????? | | ??# #??#????????????????? | | ??# ## ?????????????????? | | ??# < $ ??????????????????? | | ??# ss#???????????????????? | | ??# s #???????????????????? | | ??? s ???????????????####??? | | ????#@#????????????##??# ##?? | | ????# #####???????? ??# #?? | | ????# !%! #????????# ?## ##? | | ????##### #????????# ## #? | | ????????# #????????# ## ## | | ????????# #????????# ## # | | ????????# #???????## # | | ????????# #???????? | | ????????# ########## # | | ????????# | | ????????########### | | ????????????????# [ # | | ????????????????## ![/ | | ?????????????????## ] | | ??????????????????# | | ?????????????????# | | ?????????????????### # # | | ???????????????????####### | | ?????????????????????????## | | ??????????????????????????### | | ????????????????????????????? | | ????????????????????????????? | | ?????????????????????????????# | | ?????????????????????????????? | | ?????????????????????????????? | +----------------------------------------------------+ Best States ------------- Heat Dissipation 42 Energy Generation 14 Energy Capacity 280 Matter Stores 300 Matter Capacity 300 Sight Range 16 Terrain Scan Density 10 Armor Coverage 300 Evasion (%) 50 Targeting Accuracy 5 Recoil Reduction 3 Item Schematics ----------------- None Robot Schematics ------------------ None Fabricated ------------ Nothing Alien Tech Used ----------------- None Achievements -------------- None Challenges ------------ None Game ------ Seed ImprovedCoolingField Manual? 0 Play Time 00:09:19 Cumulative 266.2 hours Start 2022.08.20 @ 19:29:40 End 2022.08.20 @ 19:39:48 Sessions 3 Manual Loads 0 Difficulty Rogue Special Mode None Game No. 376 Rogue 354 Adventurer 4 Explorer 18 Win Type - Total 11 Types 9/0/0/2/0/0/0/0/0 Lore% 70 Gallery% 89 Achievement% 72 Wizard Run 0 Options --------- ASCII 0 Keyboard 1 Movement Numpad Keybinds 0 Fullscreen 1 Font 18/SmallcapsGlow Map View 76x50 Tactical HUD 1 Map Filters NONE Filters NONE Steam 1 RUN: 0b24f7e0-a044-4f07-8cda-a71a6bfbf0ca